bitfinex-derivatives/quotes_BTCF0:USTF0_20250315
["timestamp","ask_amount","ask_price","bid_price","bid_amount"]
[1742059970183,0.1183464,84496.0,84495.0,0.00017748]
[1742059970482,0.3883464,84496.0,84495.0,0.00017748]
[1742059970676,0.1183464,84496.0,84495.0,0.00017748]
[1742059970981,0.1183534,84491.0,84490.0,0.3608]
[1742059971181,0.2394334,84491.0,84490.0,0.3608]
[1742059971775,0.5842334,84491.0,84490.0,0.3608]
[1742059971976,0.3042334,84491.0,84490.0,0.3608]
[1742059972486,0.5342334,84491.0,84490.0,0.3608]
[1742059972891,0.3052334,84491.0,84490.0,0.3608]
[1742059973074,0.3062334,84491.0,84490.0,0.3608]
[1742059973881,0.3082334,84491.0,84490.0,0.3608]
[1742059975581,0.3072334,84491.0,84490.0,0.3608]
[1742059975782,0.3092334,84491.0,84490.0,0.3608]
[1742059976176,0.3072334,84491.0,84490.0,0.3608]
[1742059976478,0.1183576,84488.0,84487.0,0.065]
[1742059977381,0.1822576,84488.0,84487.0,0.065]
[1742059977678,0.1842576,84488.0,84487.0,0.065]
[1742059979182,0.1822576,84488.0,84487.0,0.065]
[1742059979390,0.1842576,84488.0,84487.0,0.065]
[1742059979689,0.1862576,84488.0,84487.0,0.065]
[1742059980885,0.1872576,84488.0,84487.0,0.065]
[1742059982794,0.4352576,84488.0,84487.0,0.065]
[1742059982981,0.1183646,84483.0,84482.0,0.00017748]
[1742059983789,0.1831646,84483.0,84482.0,0.00017748]
[1742059984187,0.1881646,84483.0,84482.0,0.00017748]
[1742059984795,0.1891646,84483.0,84482.0,0.03067748]
[1742059985597,0.1861646,84483.0,84482.0,0.03067748]
[1742059985799,0.1891646,84483.0,84482.0,0.03067748]
[1742059986614,0.1881646,84483.0,84482.0,0.03067748]
[1742059986993,0.1861646,84483.0,84482.0,0.03067748]
[1742059987199,0.1891646,84483.0,84482.0,0.03067748]
[1742059988397,0.1891646,84483.0,84482.0,0.06307748]
[1742059990794,0.3089246,84483.0,84482.0,0.06307748]
[1742059990998,0.2441246,84483.0,84482.0,0.06307748]
[1742059991199,0.2441246,84483.0,84482.0,0.18144348]
[1742059991506,0.2774246,84483.0,84482.0,0.06307748]
[1742059991999,0.1243646,84483.0,84482.0,0.18144348]
[1742059992306,0.2441646,84483.0,84482.0,0.18144348]
[1742059992485,0.1243646,84483.0,84482.0,0.46144348]
[1742059992805,0.1243646,84483.0,84482.0,0.41144348]
[1742059993186,0.1243646,84483.0,84482.0,0.46144348]
[1742059993394,0.1243646,84483.0,84482.0,0.51144348]
[1742059993593,0.1243646,84483.0,84482.0,0.46144348]
[1742059993994,0.1243646,84483.0,84482.0,0.18144348]
[1742059994188,0.1243646,84483.0,84482.0,0.44144348]
[1742059994387,0.1243646,84483.0,84482.0,0.18144348]
[1742059994587,0.1243646,84483.0,84482.0,0.47144348]
[1742059995706,0.1243646,84483.0,84482.0,0.44144348]
[1742059995905,0.1243646,84483.0,84482.0,0.47144348]
[1742059996291,0.1213646,84483.0,84482.0,0.47144348]
[1742059997889,0.1213646,84483.0,84482.0,0.47244348]
[1742059998103,0.1183646,84483.0,84482.0,0.47244348]
[1742059998305,0.1183646,84483.0,84482.0,0.47344348]
[1742059998494,0.1184034,84484.0,84483.0,0.1183646]
[1742059998689,0.1184034,84484.0,84483.0,0.4383646]
[1742059998893,4e-05,84484.0,84483.0,0.5016646]
[1742059999207,0.1183613,84486.0,84485.0,0.1775392]
[1742059999403,0.1183613,84486.0,84485.0,0.8916392]
[1742059999602,0.1183613,84486.0,84485.0,0.9416392]
[1742060002190,0.1506613,84486.0,84485.0,0.9416392]
[1742060002400,0.1826613,84486.0,84485.0,0.9416392]
[1742060004098,0.1506613,84486.0,84485.0,0.9416392]
[1742060012100,0.1506613,84486.0,84485.0,0.8916392]
[1742060012996,0.1506613,84486.0,84485.0,1.2524392]
[1742060015409,0.1506613,84486.0,84485.0,0.6508]
[1742060015615,0.1826613,84486.0,84485.0,0.6508]
[1742060016706,0.1826613,84486.0,84485.0,0.4083618]
[1742060016905,0.1836613,84486.0,84485.0,0.4083618]
[1742060017410,0.1836613,84486.0,84485.0,0.29]
[1742060018199,0.1183646,84483.0,84482.0,0.00017748]
[1742060018712,0.3583646,84483.0,84482.0,0.00017748]
[1742060019103,0.1825646,84483.0,84482.0,0.00017748]
[1742060019509,0.4225646,84483.0,84482.0,0.00017748]
[1742060019703,0.4235646,84483.0,84482.0,0.00017748]
[1742060019910,0.4245646,84483.0,84482.0,0.00017748]
[1742060020117,0.1845646,84483.0,84482.0,0.00017748]
[1742060020508,0.1855646,84483.0,84482.0,0.00017748]
[1742060021309,0.1875646,84483.0,84482.0,0.00017748]
[1742060022110,0.1845646,84483.0,84482.0,0.00017748]
[1742060022310,0.1865646,84483.0,84482.0,0.00017748]
[1742060023412,0.1855646,84483.0,84482.0,0.00017748]
[1742060023918,0.1845646,84483.0,84482.0,0.00017748]
[1742060024127,0.1855646,84483.0,84482.0,0.00017748]
[1742060024711,0.1845646,84483.0,84482.0,0.00017748]
[1742060025423,0.1835646,84483.0,84482.0,0.00017748]
[1742060025613,0.1845646,84483.0,84482.0,0.00017748]
[1742060028107,0.1845646,84483.0,84479.0,0.36156]
[1742060028108,0.1183688,84480.0,84479.0,0.3608]
[1742060028308,0.3983688,84480.0,84479.0,0.3608]
[1742060028513,0.1183688,84480.0,84479.0,0.3608]
[1742060028717,0.3583688,84480.0,84479.0,0.3608]
[1742060028916,0.1494688,84480.0,84479.0,0.3608]
[1742060029318,0.4094688,84480.0,84479.0,0.3608]
[1742060030323,0.4214886,84480.0,84479.0,0.3608]
[1742060030619,0.4234886,84480.0,84479.0,0.28836027]
[1742060030821,0.1183767,84475.0,84471.0,0.00195302]
[1742060031029,0.2424292,84474.0,84471.0,0.00195302]
[1742060031223,0.11838,84472.0,84471.0,0.00195302]
[1742060032022,0.35838,84472.0,84471.0,0.00195302]
[1742060032413,0.1183912,84464.0,84463.0,0.3608]
[1742060032619,0.2375912,84464.0,84463.0,0.3608]
[1742060033324,0.3015912,84464.0,84463.0,0.3608]
[1742060034315,0.3035912,84464.0,84463.0,0.3911]
[1742060034733,0.1873912,84464.0,84463.0,0.3911]
[1742060034909,0.3064712,84464.0,84463.0,0.3911]
[1742060035318,0.3034712,84464.0,84463.0,0.3911]
[1742060035511,0.3064712,84464.0,84463.0,0.3911]
[1742060037426,0.3034712,84464.0,84463.0,0.3911]
[1742060037626,0.3064712,84464.0,84463.0,0.3911]
[1742060039829,0.3034712,84464.0,84463.0,0.3911]
[1742060040020,0.3064712,84464.0,84463.0,0.3911]
[1742060040215,0.3044712,84464.0,84463.0,0.0303]
[1742060040417,0.3064712,84464.0,84463.0,0.0303]
[1742060042919,0.3034712,84464.0,84463.0,0.0303]
[1742060043122,0.3054712,84464.0,84463.0,0.0303]
[1742060051431,0.3051112,84464.0,84463.0,0.0303]
[1742060052441,0.3051512,84464.0,84463.0,0.0303]
[1742060052942,0.3051512,84464.0,84463.0,0.03054]
[1742060053234,0.3051512,84464.0,84463.0,0.1489326]
[1742060054523,0.3051512,84464.0,84463.0,0.03054]
[1742060055130,0.00404,84464.0,84463.0,0.4289326]
[1742060055331,0.1224312,84464.0,84463.0,0.4289326]
[1742060056837,0.1204312,84464.0,84463.0,0.4799326]
[1742060057335,0.1184312,84464.0,84463.0,0.4799326]
[1742060057846,0.1184312,84464.0,84463.0,0.4809326]
[1742060059540,0.1184312,84464.0,84463.0,0.4309326]
[1742060060841,0.1184312,84464.0,84463.0,0.4299326]
[1742060061042,0.1184312,84464.0,84463.0,0.4309326]
[1742060063935,0.1184312,84464.0,84463.0,0.31254]
[1742060064551,0.1184312,84464.0,84463.0,0.4299326]
[1742060064739,0.1184312,84464.0,84463.0,0.4617326]
[1742060065446,0.1184312,84464.0,84463.0,0.4607326]
[1742060066551,0.1184312,84464.0,84463.0,0.5107326]
[1742060067141,0.1184312,84464.0,84463.0,0.5097326]
[1742060067335,0.1184312,84464.0,84463.0,0.5107326]
[1742060067942,0.1184312,84464.0,84463.0,0.5117326]
[1742060068943,0.1184312,84464.0,84463.0,0.5107326]
[1742060069138,0.1184312,84464.0,84463.0,0.5117326]
[1742060069344,0.1184312,84464.0,84463.0,0.8817326]
[1742060069541,0.1184312,84464.0,84463.0,1.1417326]
[1742060069741,0.1184312,84464.0,84463.0,0.6107326]
[1742060069948,0.1184312,84464.0,84463.0,0.8517326]
[1742060070152,0.1184312,84464.0,84463.0,0.6117326]
[1742060072054,4e-05,84464.0,84463.0,1.1617326]
[1742060072356,0.1184312,84464.0,84463.0,0.6117326]
[1742060072750,4e-05,84464.0,84463.0,0.8617326]
[1742060072942,4e-05,84464.0,84463.0,0.6117326]
[1742060073448,0.1184312,84464.0,84463.0,0.6117326]
[1742060073648,0.03014,84464.0,84463.0,0.6117326]
[1742060074250,0.03014,84464.0,84463.0,1.1317326]
[1742060074453,0.03014,84464.0,84463.0,0.6117326]
[1742060074640,0.03014,84464.0,84463.0,1.1517326]
[1742060075050,0.03014,84464.0,84463.0,0.6117326]
[1742060075249,0.03014,84464.0,84463.0,0.8817326]
[1742060075450,0.03014,84464.0,84463.0,0.6117326]
[1742060076353,0.06134,84464.0,84463.0,0.6117326]
[1742060076743,0.03014,84464.0,84463.0,0.6117326]
[1742060076949,0.03014,84464.0,84463.0,1.1417326]
[1742060077149,0.03014,84464.0,84463.0,0.8917326]
[1742060079345,0.06104,84464.0,84463.0,0.8917326]
[1742060081958,0.06104,84464.0,84463.0,1.2525326]
[1742060085876,0.1794312,84464.0,84463.0,1.1025326]
[1742060086077,0.2111312,84464.0,84463.0,0.7614326]
[1742060086473,0.2111312,84464.0,84463.0,0.7920326]
[1742060086974,0.2111312,84464.0,84463.0,0.7614326]
[1742060091380,0.2111312,84464.0,84463.0,0.64304]
[1742060091574,0.2111312,84464.0,84463.0,0.36304]
[1742060091771,0.2111312,84464.0,84463.0,0.00224]
[1742060092680,0.2171312,84464.0,84463.0,0.00024]
[1742060093483,0.2161312,84464.0,84463.0,0.00024]
[1742060093886,0.3352512,84464.0,84463.0,0.00024]
[1742060094483,0.3342512,84464.0,84463.0,0.00024]
[1742060095789,0.3322512,84464.0,84463.0,0.00024]
[1742060095983,0.3332512,84464.0,84463.0,0.00024]
[1742060096487,0.3322512,84464.0,84463.0,0.00024]
[1742060096691,0.3342512,84464.0,84463.0,0.00024]
[1742060096891,0.6042512,84464.0,84463.0,0.00024]
[1742060099179,0.3342512,84464.0,84463.0,0.00024]
[1742060099382,0.6042512,84464.0,84463.0,0.00024]
[1742060099796,0.6042512,84464.0,84442.0,0.3608]
[1742060099797,0.0591997,84459.0,84442.0,0.3608]
[1742060099999,0.1184024,84456.0,84442.0,0.01208199]
[1742060100186,0.3684024,84456.0,84442.0,0.01208199]
[1742060100377,0.3684024,84456.0,84446.0,4e-05]
[1742060101292,0.3684024,84456.0,84442.0,0.01208199]
[1742060101496,0.4870824,84456.0,84446.0,4e-05]
[1742060101798,0.4910824,84456.0,84446.0,4e-05]
[1742060101994,0.4950824,84456.0,84446.0,4e-05]
[1742060102388,0.6916824,84456.0,84446.0,4e-05]
[1742060102591,0.72328,84456.0,84446.0,4e-05]
[1742060102794,0.1184347,84433.0,84432.0,0.3608]
[1742060102992,0.2382347,84433.0,84432.0,0.3608]
[1742060103589,0.24193767,84433.0,84432.0,0.37290495]
[1742060103788,0.27383767,84433.0,84432.0,0.3608]
[1742060104091,0.27383767,84433.0,84432.0,0.4792361]
[1742060104290,0.27383767,84433.0,84432.0,0.3608]
[1742060104695,0.27483767,84433.0,84432.0,0.3608]
[1742060105795,0.27483767,84433.0,84432.0,0.4792361]
[1742060105987,0.27583767,84433.0,84432.0,0.4792361]
[1742060106186,0.27583767,84433.0,84432.0,0.3608]
[1742060106597,0.27483767,84433.0,84432.0,0.4218]
[1742060109109,0.27383767,84433.0,84432.0,0.8202361]
[1742060109405,0.24269767,84433.0,84432.0,0.8202361]
[1742060109800,0.24169767,84433.0,84432.0,0.8202361]
[1742060110412,0.24169767,84433.0,84432.0,0.7018]
[1742060110601,0.27469767,84433.0,84432.0,0.7018]
[1742060110811,0.28580332,84433.0,84432.0,0.7018]
[1742060111408,0.28580332,84433.0,84432.0,0.8202361]
[1742060112110,0.28580332,84433.0,84432.0,0.7018]
[1742060112610,0.16624332,84433.0,84432.0,0.7018]
[1742060112805,0.18443875,84433.0,84432.0,0.67513898]
[1742060113406,0.21570667,84433.0,84432.0,0.67513898]
[1742060113710,0.19751036,84433.0,84432.0,0.67513898]
[1742060114812,0.21568777,84433.0,84432.0,0.67513898]
[1742060115402,0.21668777,84433.0,84432.0,0.67513898]
[1742060115719,0.22261254,84433.0,84432.0,0.61144767]
[1742060116517,0.22361254,84433.0,84432.0,0.61144767]
[1742060116707,0.21768777,84433.0,84432.0,0.61144767]
[1742060117311,0.2182364,84433.0,84432.0,0.61144767]
[1742060117702,0.1997141,84433.0,84432.0,0.61144767]
[1742060118314,0.1667141,84433.0,84432.0,0.61144767]
[1742060118711,0.18489605,84433.0,84432.0,0.61144767]
[1742060119113,0.15513767,84433.0,84432.0,0.61144767]
[1742060119314,0.18469065,84433.0,84432.0,0.61144767]
[1742060119714,0.1665042,84433.0,84432.0,0.341]
[1742060120221,0.1665042,84433.0,84432.0,0.061]
[1742060120518,0.1994042,84433.0,84432.0,0.061]
[1742060120718,0.21840084,84433.0,84432.0,0.061]
[1742060121114,0.22484427,84433.0,84432.0,0.061]
[1742060121319,0.22484427,84433.0,84432.0,0.0308]
[1742060121512,0.19194427,84433.0,84432.0,0.0308]
[1742060121703,0.16094427,84433.0,84432.0,0.2608]
[1742060122320,0.16094427,84433.0,84432.0,0.3508]
[1742060122519,0.16094427,84433.0,84432.0,0.2608]
[1742060122816,0.16094427,84433.0,84432.0,0.3792361]
[1742060123112,0.15372669,84433.0,84432.0,0.3792361]
[1742060123513,0.15372669,84433.0,84432.0,0.4092361]
[1742060123719,0.15372669,84433.0,84432.0,0.4122361]
[1742060124021,0.15372669,84433.0,84432.0,0.4622361]
[1742060124604,0.15372669,84433.0,84432.0,0.4122361]
[1742060124810,0.15372669,84433.0,84432.0,0.4622361]
[1742060125012,0.15421648,84433.0,84432.0,0.4622361]
[1742060126623,0.15421648,84433.0,84432.0,0.4122361]
[1742060126917,0.15444467,84433.0,84432.0,0.4622361]
[1742060127520,0.03600997,84433.0,84432.0,0.7622361]
[1742060128922,0.03592129,84433.0,84432.0,0.7622361]
[1742060129521,0.15435599,84433.0,84432.0,0.7622361]
[1742060129823,0.03592129,84433.0,84432.0,0.7622361]
[1742060130813,0.03588843,84433.0,84432.0,0.7622361]
[1742060132621,0.00017758,84441.0,84440.0,0.1184249]
[1742060132935,0.00017758,84441.0,84440.0,1.4792249]
[1742060133511,0.00017758,84441.0,84440.0,1.5450249]
[1742060134024,0.00417758,84441.0,84440.0,1.5450249]
[1742060135616,0.00717758,84441.0,84440.0,1.5450249]
[1742060141319,0.0326,84456.0,84455.0,0.1184038]
[1742060141632,0.1510024,84456.0,84455.0,0.3984038]
[1742060142624,0.1610024,84456.0,84455.0,0.3613854]
[1742060143026,0.2230024,84456.0,84455.0,0.3613854]
[1742060143418,0.2230024,84456.0,84455.0,0.3929854]
[1742060144418,0.23408072,84456.0,84455.0,0.40493443]
[1742060145129,0.23778256,84456.0,84455.0,0.40493443]
[1742060145732,0.23778256,84456.0,84455.0,0.37333443]
[1742060146031,0.23778256,84456.0,84455.0,0.43533443]
[1742060146237,0.11938016,84456.0,84455.0,0.45533443]
[1742060146623,0.23778256,84456.0,84455.0,0.45533443]
[1742060146930,0.2230024,84456.0,84455.0,0.45533443]
[1742060147937,0.2230024,84456.0,84455.0,0.43533443]
[1742060148133,0.2230024,84456.0,84455.0,0.46533443]
[1742060148522,0.1046,84456.0,84455.0,0.46533443]
[1742060149317,0.1046,84456.0,84455.0,0.43533443]
[1742060149523,0.2230024,84456.0,84455.0,0.43533443]
[1742060150530,0.2230024,84456.0,84455.0,0.40493443]
[1742060150930,0.2230024,84456.0,84455.0,0.76573443]
[1742060151533,0.2230024,84456.0,84455.0,0.80573443]
[1742060152932,0.072,84456.0,84455.0,1.22573443]
[1742060153534,0.0319,84461.0,84460.0,0.1183968]
[1742060153737,0.0319,84461.0,84460.0,0.4283968]
[1742060154033,0.0319,84461.0,84460.0,0.4883968]
[1742060154333,0.00021758,84464.0,84463.0,0.1183926]
[1742060154535,0.00021758,84464.0,84463.0,1.4291926]
[1742060155030,0.00021758,84464.0,84463.0,1.4596926]
[1742060156234,0.00121758,84464.0,84463.0,1.4596926]
[1742060157032,0.00221758,84464.0,84463.0,1.4596926]
[1742060159840,0.00221758,84464.0,84463.0,1.0988926]
[1742060160141,0.00221758,84464.0,84463.0,1.4596926]
[1742060163227,0.12060878,84464.0,84463.0,1.4596926]
[1742060164045,0.00221758,84464.0,84463.0,1.4596926]
[1742060165741,0.00221758,84464.0,84463.0,1.2196926]
[1742060166242,0.00591864,84464.0,84463.0,1.2196926]
[1742060166439,0.08173036,84464.0,84463.0,1.2196926]
[1742060166637,0.20012156,84464.0,84463.0,1.2196926]
[1742060167849,0.08173036,84464.0,84463.0,1.2196926]
[1742060168240,0.08173036,84464.0,84463.0,1.4396926]
[1742060170256,0.04973036,84464.0,84463.0,1.4396926]
[1742060172744,4e-05,84474.0,84473.0,0.1183786]
[1742060173054,0.1506772,84474.0,84473.0,0.72216914]
[1742060173248,0.1506772,84474.0,84473.0,0.75276914]
[1742060173858,0.1546772,84474.0,84473.0,0.75276914]
[1742060174248,0.1586772,84474.0,84473.0,0.75276914]
[1742060174450,0.1910772,84474.0,84473.0,0.75276914]
[1742060178854,0.1910772,84474.0,84473.0,0.39196914]
[1742060179055,0.1910772,84474.0,84473.0,0.75276914]
[1742060183158,0.0404,84474.0,84473.0,0.76276914]
[1742060183363,0.0733,84474.0,84473.0,1.26276914]
[1742060183659,0.0733,84474.0,84473.0,0.76276914]
[1742060183863,0.1916772,84474.0,84473.0,0.76276914]
[1742060184363,0.0733,84474.0,84473.0,0.76276914]
[1742060190470,0.0404,84474.0,84473.0,0.76276914]
[1742060190649,0.008,84474.0,84473.0,0.76276914]
[1742060191760,0.038,84474.0,84473.0,1.04276914]
[1742060192363,0.038,84474.0,84473.0,0.76276914]
[1742060192863,0.038,84474.0,84473.0,1.00276914]
[1742060193670,0.038,84474.0,84473.0,1.28276914]
[1742060193873,0.038,84474.0,84473.0,0.76276914]
[1742060194175,0.038,84474.0,84473.0,1.26276914]
[1742060194860,0.008,84474.0,84473.0,1.26276914]
[1742060195462,4e-05,84481.0,84480.0,0.1183688]
[1742060195662,4e-05,84481.0,84480.0,1.4291688]
[1742060195970,0.031,84484.0,84483.0,0.1183646]
[1742060196171,0.031,84484.0,84483.0,0.7683646]
[1742060196775,0.031,84484.0,84483.0,0.78004356]
[1742060197461,0.034,84484.0,84483.0,0.81314356]
[1742060197662,0.1523632,84484.0,84483.0,0.81314356]
[1742060198072,0.034,84484.0,84483.0,0.81314356]
[1742060198273,0.0641,84484.0,84483.0,0.81314356]
[1742060201477,0.1824632,84484.0,84483.0,0.70314356]
[1742060202774,0.1824632,84484.0,84483.0,0.49314356]
[1742060204884,0.1824632,84484.0,84483.0,0.44314356]
[1742060205981,0.0641,84484.0,84483.0,0.44314356]
[1742060207383,0.06418,84484.0,84483.0,0.44314356]
[1742060207879,0.1825432,84484.0,84483.0,0.44318356]
[1742060212082,0.1824632,84484.0,84483.0,0.44318356]
[1742060212283,0.1824632,84484.0,84483.0,0.44314356]
[1742060212484,0.1825432,84484.0,84483.0,0.44314356]
[1742060212670,0.1825432,84484.0,84483.0,0.44318356]
[1742060213481,0.06418,84484.0,84483.0,0.44318356]
[1742060213775,0.06418,84484.0,84483.0,0.56318356]
[1742060213975,0.03318,84484.0,84483.0,0.56318356]
[1742060214176,0.03318,84484.0,84483.0,0.59478356]
[1742060214979,0.03318,84484.0,84483.0,0.84478356]
[1742060218176,0.1515432,84484.0,84483.0,0.84478356]
[1742060218488,0.1515432,84484.0,84483.0,0.69318356]
[1742060220886,0.1515432,84484.0,84483.0,0.66008356]
[1742060221086,0.1515432,84484.0,84483.0,0.41008356]
[1742060223888,0.1515432,84484.0,84483.0,0.47338356]
[1742060224595,0.03318,84484.0,84483.0,0.47338356]
[1742060224891,0.03318,84484.0,84483.0,0.57338356]
[1742060225591,0.06388,84484.0,84483.0,0.57338356]
[1742060225995,0.03318,84484.0,84483.0,0.57338356]
[1742060227685,0.00308,84484.0,84483.0,0.81338356]
[1742060230198,0.00308,84484.0,84483.0,0.57338356]
[1742060230590,0.1547432,84484.0,84483.0,0.57338356]
[1742060230789,0.1875432,84484.0,84483.0,0.57338356]
[1742060233502,0.06918,84484.0,84483.0,0.57338356]
[1742060242303,0.06918,84484.0,84483.0,0.93418356]
[1742060243693,0.1875432,84484.0,84483.0,0.93418356]
[1742060250607,0.06918,84484.0,84483.0,0.93418356]
[1742060251208,0.1875432,84484.0,84483.0,0.93418356]
[1742060253105,0.1875432,84484.0,84483.0,0.90168356]
[1742060260816,0.1875432,84484.0,84483.0,0.80168356]
[1742060273821,0.1875432,84484.0,84483.0,0.82168356]
[1742060278526,0.1875432,84484.0,84483.0,0.80168356]
[1742060288918,0.1875432,84484.0,84483.0,0.44088356]
[1742060289229,0.1875432,84484.0,84483.0,0.80168356]
[1742060299934,0.1547432,84484.0,84483.0,0.80168356]
[1742060300229,0.1214432,84484.0,84483.0,0.82168356]
[1742060301424,0.1516432,84484.0,84483.0,0.82168356]
[1742060302338,0.46799174,84484.0,84483.0,0.82168356]
[1742060305028,0.43579174,84484.0,84483.0,0.82168356]
[1742060308127,0.46809174,84484.0,84483.0,0.82168356]
[1742060309638,0.31742854,84484.0,84483.0,0.80168356]
[1742060309831,0.43579174,84484.0,84483.0,0.80168356]
[1742060310141,0.31742854,84484.0,84483.0,0.80168356]
[1742060310337,0.46809174,84484.0,84483.0,0.80168356]
[1742060311038,0.34972854,84484.0,84483.0,0.80168356]
[1742060311739,0.1839432,84484.0,84483.0,0.80168356]
[1742060315634,0.3021832,84484.0,84483.0,0.80168356]
[1742060322242,0.3021832,84484.0,84483.0,0.44088356]
[1742060322448,0.3021832,84484.0,84483.0,0.80168356]
[1742060324047,0.18382,84484.0,84483.0,0.82168356]
[1742060324343,0.3021832,84484.0,84483.0,0.82168356]
[1742060325443,0.3021832,84484.0,84483.0,0.46088356]
[1742060325641,0.3021832,84484.0,84483.0,0.82168356]
[1742060337230,0.00308,84484.0,84483.0,0.82168356]
[1742060337432,0.00308,84484.0,84483.0,0.90168356]
[1742060337635,0.11741758,84492.0,84491.0,0.1183534]
[1742060337837,0.11741758,84492.0,84491.0,0.7191534]
[1742060338037,0.14901758,84492.0,84491.0,0.7191534]
[1742060338238,0.14901758,84492.0,84491.0,0.7805534]
[1742060338845,0.15001758,84492.0,84491.0,0.7805534]
[1742060339850,0.26836958,84492.0,84491.0,0.7805534]
[1742060350055,0.26836958,84492.0,84491.0,0.7905534]
[1742060350262,0.26836958,84492.0,84491.0,0.7805534]
[1742060351660,0.26836958,84492.0,84491.0,0.8205534]
[1742060351860,0.26836958,84492.0,84491.0,0.7805534]
[1742060352860,0.26836958,84492.0,84491.0,0.8105534]
[1742060353966,0.15112958,84492.0,84491.0,0.8105534]
[1742060366476,0.15112958,84492.0,84491.0,0.4497534]
[1742060366671,0.15112958,84492.0,84491.0,0.8105534]
[1742060366866,0.00117758,84492.0,84491.0,0.8105534]
[1742060367473,0.11952958,84492.0,84491.0,0.8105534]
[1742060368378,0.18322958,84492.0,84491.0,0.8105534]
[1742060374883,0.03267758,84492.0,84491.0,0.8105534]
[1742060376085,0.15102958,84492.0,84491.0,0.8105534]
[1742060380681,0.15102958,84492.0,84491.0,0.7805534]
[1742060381470,0.15102958,84492.0,84491.0,0.8405534]
[1742060382583,0.03267758,84492.0,84491.0,0.8405534]
[1742060383072,0.15102958,84492.0,84491.0,0.8405534]
[1742060386770,0.03267758,84492.0,84491.0,0.8405534]
[1742060387790,0.18122958,84492.0,84491.0,0.8405534]
[1742060389789,0.06287758,84492.0,84491.0,0.8405534]
[1742060390974,0.18122958,84492.0,84491.0,0.8405534]
[1742060391178,0.21232958,84492.0,84491.0,0.8405534]
[1742060394095,0.21232958,84492.0,84491.0,0.7805534]
[1742060394290,0.21232958,84492.0,84491.0,0.7494534]
[1742060395489,0.21232958,84492.0,84491.0,0.7191534]
[1742060396496,0.21232958,84492.0,84491.0,0.7495534]
[1742060398294,0.32828958,84492.0,84491.0,0.7495534]
[1742060400894,0.32828958,84492.0,84491.0,0.7813534]
[1742060403984,0.32828958,84492.0,84491.0,0.663]
[1742060406200,0.32828958,84492.0,84491.0,0.7813534]
[1742060407103,0.32828958,84492.0,84483.0,0.00021758]
[1742060407104,0.1183632,84484.0,84483.0,0.00021758]
[1742060407408,0.1183744,84476.0,84475.0,0.3608]
[1742060407595,0.2343344,84476.0,84475.0,0.3608]
[1742060407784,0.2343344,84476.0,84475.0,0.3934]
[1742060408187,0.2973344,84476.0,84475.0,0.3934]
[1742060408788,0.2983344,84476.0,84475.0,0.3934]
[1742060409501,0.2983344,84476.0,84475.0,0.0326]
[1742060412089,0.2983344,84476.0,84475.0,0.1509758]
[1742060413203,0.1514744,84476.0,84475.0,0.1509758]
[1742060413405,0.2674344,84476.0,84475.0,0.1509758]
[1742060418115,0.001,84476.0,84475.0,0.3509758]
[1742060418300,0.1193744,84476.0,84475.0,0.3509758]
[1742060419099,0.1193744,84476.0,84475.0,0.3809758]
[1742060419995,0.1193744,84476.0,84475.0,0.3509758]
[1742060422911,0.1193744,84476.0,84475.0,0.7117758]
[1742060424619,0.1193744,84476.0,84475.0,0.7417758]
[1742060425623,0.1193744,84476.0,84475.0,0.7117758]
[1742060428903,0.1193744,84476.0,84475.0,0.3509758]
[1742060429102,0.1193744,84476.0,84475.0,0.7117758]
[1742060432511,0.001,84476.0,84475.0,0.7417758]
[1742060433113,0.001,84476.0,84475.0,1.2617758]
[1742060433319,0.001,84476.0,84475.0,0.7417758]
[1742060434621,0.001,84476.0,84475.0,0.7117758]
[1742060434823,0.001,84476.0,84475.0,0.7517758]
[1742060439621,0.001,84476.0,84475.0,1.2517758]
[1742060439917,0.0316,84484.0,84483.0,0.1183646]
[1742060440131,0.14756,84484.0,84483.0,0.7391646]
[1742060440417,0.00017758,84492.0,84491.0,0.1183534]
[1742060440612,0.11613758,84492.0,84491.0,0.3583534]
[1742060440815,0.23448958,84492.0,84491.0,0.3914534]
[1742060441222,0.23448958,84492.0,84491.0,0.1514534]
[1742060441631,0.26608958,84492.0,84491.0,0.1837534]
[1742060441923,0.26708958,84492.0,84491.0,0.1837534]
[1742060442125,0.29838958,84492.0,84491.0,0.1837534]
[1742060443413,0.29838958,84492.0,84491.0,0.19590553]
[1742060444126,0.29838958,84492.0,84491.0,0.55670553]
[1742060444326,0.29838958,84492.0,84491.0,0.19590553]
[1742060448326,0.54698016,84492.0,84491.0,0.19590553]
[1742060449416,0.42862816,84492.0,84491.0,0.19590553]
[1742060450224,0.54698016,84492.0,84491.0,0.19590553]
[1742060451229,0.42862816,84492.0,84491.0,0.19590553]
[1742060451427,0.29838958,84492.0,84491.0,0.19590553]
[1742060454120,0.18003758,84492.0,84491.0,0.19590553]
[1742060455824,0.29838958,84492.0,84491.0,0.19590553]
[1742060464548,0.29838958,84492.0,84491.0,0.41590553]
[1742060481443,0.29838958,84492.0,84491.0,0.2531]
[1742060481647,0.118359,84487.0,84486.0,0.0591796]
[1742060481859,0.118359,84487.0,84486.0,0.1009796]
[1742060482045,0.118359,84487.0,84486.0,0.0909796]
[1742060482456,0.179859,84487.0,84486.0,0.0909796]
[1742060483139,0.179859,84487.0,84486.0,0.10254793]
[1742060488058,0.376359,84487.0,84486.0,0.10254793]
[1742060488357,0.179859,84487.0,84486.0,0.10254793]
[1742060489748,0.179859,84487.0,84486.0,0.46334793]
[1742060492963,0.179859,84487.0,84486.0,0.46334793]
[1742060494270,0.179859,84487.0,84486.0,0.40416833]
[1742060495359,0.179859,84487.0,84486.0,0.04336833]
[1742060495761,0.179859,84487.0,84486.0,0.0318]
[1742060495954,0.179859,84487.0,84460.0,0.29186462]
[1742060495955,0.1183842,84469.0,84460.0,0.29186462]
[1742060496150,0.1183842,84469.0,84468.0,0.1916]
[1742060496463,0.1183842,84469.0,84468.0,0.1816]
[1742060496675,0.1502842,84469.0,84468.0,0.0316]
[1742060497156,0.1802842,84469.0,84468.0,0.0653]
[1742060497753,0.1802842,84469.0,84468.0,0.0663]
[1742060500468,0.1802842,84469.0,84468.0,0.3063]
[1742060505863,0.39277063,84469.0,84468.0,0.3063]
[1742060508185,0.39277063,84469.0,84468.0,0.0663]
[1742060508374,0.39277063,84469.0,84468.0,0.0336]
[1742060508579,0.66277063,84469.0,84468.0,0.0336]
[1742060509461,0.39277063,84469.0,84468.0,0.0336]
[1742060509676,0.1802842,84469.0,84468.0,0.0336]
[1742060510265,0.4602842,84469.0,84468.0,0.0336]
[1742060510877,0.4602842,84469.0,84468.0,0.002]
[1742060513875,0.58268504,84469.0,84468.0,0.002]
[1742060517875,0.4602842,84469.0,84468.0,0.002]
[1742060518484,0.6567842,84469.0,84468.0,0.002]
[1742060518778,0.6567842,84469.0,84468.0,0.0324]